[Event "Titled Tuesday Blitz August 16 Late 2022"]
[White "Urh, Zala"]
[Black "Ambartsumova, Karina"]
[WhiteFideId "14611481"]
[BlackFideId "4166299"]
[WhiteElo "2097"]
[BlackElo "2262"]
[Result "0-1"]
[Round "01"]
[TimeControl "180+1"]
[Date "2022.08.18"]
[WhiteClock "0:00:00"]
[BlackClock "0:00:00"]

1. e4 {[%clk 0:00:00]}  c5 {[%clk 0:00:00]} 2. Nf3 {[%clk 0:00:00]}  e6 {[%clk 0:00:00]} 3. d4 {[%clk 0:00:00]}  cxd4 {[%clk 0:00:00]} 4. Nxd4 {[%clk 0:00:00]}  a6 {[%clk 0:00:00]} 5. Nc3 {[%clk 0:00:00]}  Qc7 {[%clk 0:00:00]} 6. Be2 {[%clk 0:00:00]}  Nf6 {[%clk 0:00:00]} 7. O-O {[%clk 0:00:00]}  Bb4 {[%clk 0:00:00]} 8. Qd3 {[%clk 0:00:00]}  Nc6 {[%clk 0:00:00]} 9. Nxc6 {[%clk 0:00:00]}  bxc6 {[%clk 0:00:00]} 10. a3 {[%clk 0:00:00]}  Be7 {[%clk 0:00:00]} 11. f4 {[%clk 0:00:00]}  d5 {[%clk 0:00:00]} 12. e5 {[%clk 0:00:00]}  Nd7 {[%clk 0:00:00]} 13. Qg3 {[%clk 0:00:00]}  O-O {[%clk 0:00:00]} 14. Bd3 {[%clk 0:00:00]}  c5 {[%clk 0:00:00]} 15. Qh3 {[%clk 0:00:00]}  g6 {[%clk 0:00:00]} 16. Qh6 {[%clk 0:00:00]}  c4 {[%clk 0:00:00]} 17. Rf3 {[%clk 0:00:00]}  Re8 {[%clk 0:00:00]} 18. Rh3 {[%clk 0:00:00]}  Nf8 {[%clk 0:00:00]} 19. f5 {[%clk 0:00:00]}  Qxe5 {[%clk 0:00:00]} 20. fxg6 {[%clk 0:00:00]}  fxg6 {[%clk 0:00:00]} 21. Bf4 {[%clk 0:00:00]}  Qg7 {[%clk 0:00:00]} 22. Qxg7+ {[%clk 0:00:00]}  Kxg7 {[%clk 0:00:00]} 23. Be2 {[%clk 0:00:00]}  Bf6 {[%clk 0:00:00]} 24. Rf1 {[%clk 0:00:00]}  Bd4+ {[%clk 0:00:00]} 25. Kh1 {[%clk 0:00:00]}  Bb7 {[%clk 0:00:00]} 26. Bh6+ {[%clk 0:00:00]}  Kg8 {[%clk 0:00:00]} 27. Bg4 {[%clk 0:00:00]}  Bg7 {[%clk 0:00:00]} 28. Bd2 {[%clk 0:00:00]}  d4 {[%clk 0:00:00]} 29. Nd1 {[%clk 0:00:00]}  e5 {[%clk 0:00:00]} 30. Bb4 {[%clk 0:00:00]}  e4 {[%clk 0:00:00]} 31. Re1 {[%clk 0:00:00]}  e3 {[%clk 0:00:00]} 32. Kg1 {[%clk 0:00:00]}  Rad8 {[%clk 0:00:00]} 33. Nxe3 {[%clk 0:00:00]}  dxe3 {[%clk 0:00:00]} 34. Rhxe3 {[%clk 0:00:00]}  Bd4 {[%clk 0:00:00]} 35. Kf2 {[%clk 0:00:00]}  Rxe3 {[%clk 0:00:00]} 36. Rxe3 {[%clk 0:00:00]}  Re8 {[%clk 0:00:00]} 37. Bd2 {[%clk 0:00:00]}  Bxg2 {[%clk 0:00:00]} 38. Kxg2 {[%clk 0:00:00]}  Bxe3 {[%clk 0:00:00]} 39. Bb4 {[%clk 0:00:00]}  Bd4 {[%clk 0:00:00]} 40. c3 {[%clk 0:00:00]}  Bg7 {[%clk 0:00:00]} 41. Kf3 {[%clk 0:00:00]}  Ne6 {[%clk 0:00:00]} 42. Bh3 {[%clk 0:00:00]}  Ng5+ {[%clk 0:00:00]} 43. Kg3 {[%clk 0:00:00]}  Re3+ {[%clk 0:00:00]} 44. Kf4 {[%clk 0:00:00]}  Rxh3 {[%clk 0:00:00]} 45. Kxg5 {[%clk 0:00:00]}  Rxh2 {[%clk 0:00:00]} 46. Kf4 {[%clk 0:00:00]}  Rxb2 {[%clk 0:00:00]} 47. Ke4 {[%clk 0:00:00]}  Rb3 {[%clk 0:00:00]} 48. Kd5 {[%clk 0:00:00]}  Bxc3 {[%clk 0:00:00]} 49. Kxc4 {[%clk 0:00:00]}  Rxb4+ {[%clk 0:00:00]} 50. axb4 {[%clk 0:00:00]}  Bxb4 {[%clk 0:00:00]} 51. Kxb4 {[%clk 0:00:00]}  Kf7 {[%clk 0:00:00]} 52. Ka5 {[%clk 0:00:00]}  Kf6 {[%clk 0:00:00]} 53. Kb6 {[%clk 0:00:00]}  g5 {[%clk 0:00:00]} 54. Ka7 {[%clk 0:00:00]}  g4 {[%clk 0:00:00]} 55. Kb8 {[%clk 0:00:00]}  g3 {[%clk 0:00:00]} 56. Ka7 {[%clk 0:00:00]}  g2 {[%clk 0:00:00]} 57. Kxa6 {[%clk 0:00:00]}  g1=Q {[%clk 0:00:00]} 58. Kb7 {[%clk 0:00:00]}  Qc5 {[%clk 0:00:00]} 59. Kb8 {[%clk 0:00:00]}  Qe7 {[%clk 0:00:00]} 60. Kc8 {[%clk 0:00:00]}  Ke6 {[%clk 0:00:00]} 61. Kb8 {[%clk 0:00:00]}  Kd6 {[%clk 0:00:00]} 62. Ka8 {[%clk 0:00:00]}  Kc6 {[%clk 0:00:00]} 63. Kb8 {[%clk 0:00:00]}  Qb7# {[%clk 0:00:00]} 0-1


[Site "https://www.chess.com"]

[Event "Titled Tuesday Blitz August 16 Late 2022"]
[White "Uskov, Artem"]
[Black "Lagowski, Patryk"]
[WhiteFideId "34254854"]
[BlackFideId "1114611"]
[WhiteElo "2335"]
[BlackElo "2274"]
[Result "1/2-1/2"]
[Round "01"]
[TimeControl "180+1"]
[Date "2022.08.18"]
[WhiteClock "0:00:00"]
[BlackClock "0:00:00"]

1. e4 {[%clk 0:00:00]}  c5 {[%clk 0:00:00]} 2. Nf3 {[%clk 0:00:00]}  d6 {[%clk 0:00:00]} 3. d4 {[%clk 0:00:00]}  cxd4 {[%clk 0:00:00]} 4. Nxd4 {[%clk 0:00:00]}  Nf6 {[%clk 0:00:00]} 5. f3 {[%clk 0:00:00]}  a6 {[%clk 0:00:00]} 6. c4 {[%clk 0:00:00]}  e5 {[%clk 0:00:00]} 7. Nc2 {[%clk 0:00:00]}  Nc6 {[%clk 0:00:00]} 8. Nc3 {[%clk 0:00:00]}  Be6 {[%clk 0:00:00]} 9. Bg5 {[%clk 0:00:00]}  Be7 {[%clk 0:00:00]} 10. Be2 {[%clk 0:00:00]}  Nxe4 {[%clk 0:00:00]} 11. Nxe4 {[%clk 0:00:00]}  Bxg5 {[%clk 0:00:00]} 12. Nxd6+ {[%clk 0:00:00]}  Ke7 {[%clk 0:00:00]} 13. Ne4 {[%clk 0:00:00]}  Qxd1+ {[%clk 0:00:00]} 14. Rxd1 {[%clk 0:00:00]}  Bh6 {[%clk 0:00:00]} 15. b3 {[%clk 0:00:00]}  b6 {[%clk 0:00:00]} 16. g4 {[%clk 0:00:00]}  Bf4 {[%clk 0:00:00]} 17. Kf2 {[%clk 0:00:00]}  Rhd8 {[%clk 0:00:00]} 18. h4 {[%clk 0:00:00]}  f6 {[%clk 0:00:00]} 19. Ne3 {[%clk 0:00:00]}  Nd4 {[%clk 0:00:00]} 20. Bd3 {[%clk 0:00:00]}  a5 {[%clk 0:00:00]} 21. Ng2 {[%clk 0:00:00]}  a4 {[%clk 0:00:00]} 22. Nxf4 {[%clk 0:00:00]}  exf4 {[%clk 0:00:00]} 23. b4 {[%clk 0:00:00]}  Rac8 {[%clk 0:00:00]} 24. Rhe1 {[%clk 0:00:00]}  Kf7 {[%clk 0:00:00]} 25. c5 {[%clk 0:00:00]}  bxc5 {[%clk 0:00:00]} 26. bxc5 {[%clk 0:00:00]}  Rc7 {[%clk 0:00:00]} 27. Nd6+ {[%clk 0:00:00]}  Kg8 {[%clk 0:00:00]} 28. Bxh7+ {[%clk 0:00:00]}  Kxh7 {[%clk 0:00:00]} 29. Rxd4 {[%clk 0:00:00]}  Bxa2 {[%clk 0:00:00]} 30. Rxa4 {[%clk 0:00:00]}  Rxc5 {[%clk 0:00:00]} 31. Nf5 {[%clk 0:00:00]}  Rc2+ {[%clk 0:00:00]} 32. Re2 {[%clk 0:00:00]}  Rxe2+ {[%clk 0:00:00]} 33. Kxe2 {[%clk 0:00:00]}  Re8+ {[%clk 0:00:00]} 34. Kf2 {[%clk 0:00:00]}  Be6 {[%clk 0:00:00]} 35. Nd4 {[%clk 0:00:00]}  Bd5 {[%clk 0:00:00]} 36. Ne2 {[%clk 0:00:00]}  g5 {[%clk 0:00:00]} 37. hxg5 {[%clk 0:00:00]}  fxg5 {[%clk 0:00:00]} 38. Ra5 {[%clk 0:00:00]}  Bc4 {[%clk 0:00:00]} 39. Nc3 {[%clk 0:00:00]}  Kh6 {[%clk 0:00:00]} 40. Ne4 {[%clk 0:00:00]}  Rg8 {[%clk 0:00:00]} 41. Rc5 {[%clk 0:00:00]}  Bd3 {[%clk 0:00:00]} 42. Rc6+ {[%clk 0:00:00]}  Rg6 {[%clk 0:00:00]} 43. Nf6 {[%clk 0:00:00]}  Bb5 {[%clk 0:00:00]} 44. Rd6 {[%clk 0:00:00]}  Kg7 {[%clk 0:00:00]} 45. Nh5+ {[%clk 0:00:00]}  Kf7 {[%clk 0:00:00]} 46. Rd5 {[%clk 0:00:00]}  Bc6 {[%clk 0:00:00]} 47. Rc5 {[%clk 0:00:00]}  Ke7 {[%clk 0:00:00]} 48. Ra5 {[%clk 0:00:00]}  Kd6 {[%clk 0:00:00]} 49. Rf5 {[%clk 0:00:00]}  Ke7 {[%clk 0:00:00]} 50. Re5+ {[%clk 0:00:00]}  Kd6 {[%clk 0:00:00]} 51. Ra5 {[%clk 0:00:00]}  Ke7 {[%clk 0:00:00]} 52. Ra7+ {[%clk 0:00:00]}  Kd6 {[%clk 0:00:00]} 53. Ng7 {[%clk 0:00:00]}  Bd7 {[%clk 0:00:00]} 54. Ra6+ {[%clk 0:00:00]}  Bc6 {[%clk 0:00:00]} 55. Nf5+ {[%clk 0:00:00]}  Kc5 {[%clk 0:00:00]} 56. Ne7 {[%clk 0:00:00]}  Re6 {[%clk 0:00:00]} 57. Nf5 {[%clk 0:00:00]}  Rf6 {[%clk 0:00:00]} 58. Ra5+ {[%clk 0:00:00]}  Kb6 {[%clk 0:00:00]} 59. Re5 {[%clk 0:00:00]}  Bb7 {[%clk 0:00:00]} 60. Nd4 {[%clk 0:00:00]}  Rd6 {[%clk 0:00:00]} 61. Re6 {[%clk 0:00:00]}  Kc5 {[%clk 0:00:00]} 62. Rxd6 {[%clk 0:00:00]}  Kxd6 {[%clk 0:00:00]} 63. Ne2 {[%clk 0:00:00]}  Ke5 {[%clk 0:00:00]} 64. Ng1 {[%clk 0:00:00]}  Kf6 {[%clk 0:00:00]} 65. Ke2 {[%clk 0:00:00]}  Bc6 {[%clk 0:00:00]} 66. Kd3 {[%clk 0:00:00]}  Bb5+ {[%clk 0:00:00]} 67. Kd4 {[%clk 0:00:00]}  Bc6 {[%clk 0:00:00]} 68. Kc5 {[%clk 0:00:00]}  Bb7 {[%clk 0:00:00]} 69. Kd6 {[%clk 0:00:00]}  Ba8 {[%clk 0:00:00]} 70. Kc7 {[%clk 0:00:00]}  Bd5 {[%clk 0:00:00]} 71. Kd6 {[%clk 0:00:00]}  Ba8 {[%clk 0:00:00]} 72. Kc5 {[%clk 0:00:00]}  Bb7 {[%clk 0:00:00]} 73. Kd4 {[%clk 0:00:00]}  Ba8 {[%clk 0:00:00]} 74. Kd3 {[%clk 0:00:00]}  Bb7 {[%clk 0:00:00]} 75. Ke2 {[%clk 0:00:00]}  Ba8 {[%clk 0:00:00]} 76. Kf2 {[%clk 0:00:00]}  Bb7 {[%clk 0:00:00]} 77. Ne2 {[%clk 0:00:00]}  Ba6 {[%clk 0:00:00]} 78. Nd4 {[%clk 0:00:00]}  Bb7 {[%clk 0:00:00]} 79. Ke2 {[%clk 0:00:00]}  Ba8 {[%clk 0:00:00]} 80. Kd3 {[%clk 0:00:00]}  Ke5 {[%clk 0:00:00]} 81. Kc4 {[%clk 0:00:00]}  Kf6 {[%clk 0:00:00]} 82. Kc5 {[%clk 0:00:00]}  Ke5 {[%clk 0:00:00]} 83. Kc4 {[%clk 0:00:00]}  Kf6 {[%clk 0:00:00]} 84. Kc3 {[%clk 0:00:00]}  Ke5 {[%clk 0:00:00]} 85. Kd3 {[%clk 0:00:00]}  Kf6 {[%clk 0:00:00]} 86. Kc4 {[%clk 0:00:00]}  Ke5 {[%clk 0:00:00]} 87. Kc5 {[%clk 0:00:00]}  Kf6 {[%clk 0:00:00]} 88. Kd6 {[%clk 0:00:00]}  Bb7 {[%clk 0:00:00]} 89. Kc5 {[%clk 0:00:00]}  Ba8 {[%clk 0:00:00]} 90. Kd6 {[%clk 0:00:00]}  Bb7 {[%clk 0:00:00]} 91. Kc7 {[%clk 0:00:00]}  Bd5 {[%clk 0:00:00]} 92. Kd6 {[%clk 0:00:00]}  Ba8 {[%clk 0:00:00]} 93. Kc5 {[%clk 0:00:00]}  Ke5 {[%clk 0:00:00]} 94. Kc4 {[%clk 0:00:00]} 1/2-1/2


[Site "https://www.chess.com"]

[Event "Titled Tuesday Blitz August 16 Late 2022"]
[White "Van Dael, Siem"]
[Black "Sokolovsky, Yahli"]
[WhiteFideId "1049771"]
[BlackFideId "2820242"]
[WhiteElo "2110"]
[BlackElo "1867"]
[Result "1-0"]
[Round "01"]
[TimeControl "180+1"]
[Date "2022.08.18"]
[WhiteClock "0:00:00"]
[BlackClock "0:00:00"]

1. e4 {[%clk 0:00:00]}  d5 {[%clk 0:00:00]} 2. exd5 {[%clk 0:00:00]}  Qxd5 {[%clk 0:00:00]} 3. Nc3 {[%clk 0:00:00]}  Qd8 {[%clk 0:00:00]} 4. d4 {[%clk 0:00:00]}  Nf6 {[%clk 0:00:00]} 5. Nf3 {[%clk 0:00:00]}  Bg4 {[%clk 0:00:00]} 6. Bc4 {[%clk 0:00:00]}  e6 {[%clk 0:00:00]} 7. O-O {[%clk 0:00:00]}  Be7 {[%clk 0:00:00]} 8. h3 {[%clk 0:00:00]}  Bxf3 {[%clk 0:00:00]} 9. Qxf3 {[%clk 0:00:00]}  c6 {[%clk 0:00:00]} 10. Be3 {[%clk 0:00:00]}  O-O {[%clk 0:00:00]} 11. Rad1 {[%clk 0:00:00]}  Nbd7 {[%clk 0:00:00]} 12. Bd3 {[%clk 0:00:00]}  Qb6 {[%clk 0:00:00]} 13. Ne4 {[%clk 0:00:00]}  Nxe4 {[%clk 0:00:00]} 14. Qxe4 {[%clk 0:00:00]}  Nf6 {[%clk 0:00:00]} 15. Qh4 {[%clk 0:00:00]}  Qd8 {[%clk 0:00:00]} 16. Rfe1 {[%clk 0:00:00]}  h6 {[%clk 0:00:00]} 17. Bxh6 {[%clk 0:00:00]}  gxh6 {[%clk 0:00:00]} 18. Qxh6 {[%clk 0:00:00]}  Bd6 {[%clk 0:00:00]} 19. Re5 {[%clk 0:00:00]}  Ne4 {[%clk 0:00:00]} 20. Rh5 {[%clk 0:00:00]}  Bh2+ {[%clk 0:00:00]} 21. Kxh2 {[%clk 0:00:00]} 1-0


[Site "https://www.chess.com"]

[Event "Titled Tuesday Blitz August 16 Late 2022"]
[White "Van Foreest, Machteld"]
[Black "Aldokhin, Ivan"]
[WhiteFideId "1051563"]
[BlackFideId "24115720"]
[WhiteElo "2235"]
[BlackElo "2413"]
[Result "0-1"]
[Round "01"]
[TimeControl "180+1"]
[Date "2022.08.18"]
[WhiteClock "0:00:00"]
[BlackClock "0:00:00"]

1. e4 {[%clk 0:00:00]}  c5 {[%clk 0:00:00]} 2. Nf3 {[%clk 0:00:00]}  e6 {[%clk 0:00:00]} 3. d4 {[%clk 0:00:00]}  cxd4 {[%clk 0:00:00]} 4. Nxd4 {[%clk 0:00:00]}  a6 {[%clk 0:00:00]} 5. Nc3 {[%clk 0:00:00]}  Qc7 {[%clk 0:00:00]} 6. Be3 {[%clk 0:00:00]}  Nf6 {[%clk 0:00:00]} 7. a3 {[%clk 0:00:00]}  b5 {[%clk 0:00:00]} 8. Be2 {[%clk 0:00:00]}  Bb7 {[%clk 0:00:00]} 9. f3 {[%clk 0:00:00]}  b4 {[%clk 0:00:00]} 10. axb4 {[%clk 0:00:00]}  Bxb4 {[%clk 0:00:00]} 11. Qd3 {[%clk 0:00:00]}  d5 {[%clk 0:00:00]} 12. O-O {[%clk 0:00:00]}  Bxc3 {[%clk 0:00:00]} 13. bxc3 {[%clk 0:00:00]}  dxe4 {[%clk 0:00:00]} 14. fxe4 {[%clk 0:00:00]}  Bxe4 {[%clk 0:00:00]} 15. Qd2 {[%clk 0:00:00]}  Nbd7 {[%clk 0:00:00]} 16. Nb5 {[%clk 0:00:00]}  axb5 {[%clk 0:00:00]} 17. Bxb5 {[%clk 0:00:00]}  O-O {[%clk 0:00:00]} 18. Rxa8 {[%clk 0:00:00]}  Bxa8 {[%clk 0:00:00]} 0-1


[Site "https://www.chess.com"]

[Event "Titled Tuesday Blitz August 16 Late 2022"]
[White "Viana Da Costa, Fernando"]
[Black "Badmatsyrenov, Oleg"]
[WhiteFideId "2111900"]
[BlackFideId "24115762"]
[WhiteElo "2277"]
[BlackElo "2403"]
[Result "0-1"]
[Round "01"]
[TimeControl "180+1"]
[Date "2022.08.18"]
[WhiteClock "0:00:00"]
[BlackClock "0:00:00"]

1. e4 {[%clk 0:00:00]}  c5 {[%clk 0:00:00]} 2. Nf3 {[%clk 0:00:00]}  e6 {[%clk 0:00:00]} 3. b3 {[%clk 0:00:00]}  Nc6 {[%clk 0:00:00]} 4. Bb2 {[%clk 0:00:00]}  a6 {[%clk 0:00:00]} 5. c4 {[%clk 0:00:00]}  d6 {[%clk 0:00:00]} 6. d4 {[%clk 0:00:00]}  cxd4 {[%clk 0:00:00]} 7. Nxd4 {[%clk 0:00:00]}  Bd7 {[%clk 0:00:00]} 8. Nc3 {[%clk 0:00:00]}  Nf6 {[%clk 0:00:00]} 9. Be2 {[%clk 0:00:00]}  Be7 {[%clk 0:00:00]} 10. O-O {[%clk 0:00:00]}  O-O {[%clk 0:00:00]} 11. Qd2 {[%clk 0:00:00]}  Qa5 {[%clk 0:00:00]} 12. Rfd1 {[%clk 0:00:00]}  Rfd8 {[%clk 0:00:00]} 13. Kh1 {[%clk 0:00:00]}  Nxd4 {[%clk 0:00:00]} 14. Qxd4 {[%clk 0:00:00]}  Rac8 {[%clk 0:00:00]} 15. Rac1 {[%clk 0:00:00]}  Qg5 {[%clk 0:00:00]} 16. Rf1 {[%clk 0:00:00]}  e5 {[%clk 0:00:00]} 17. Qd3 {[%clk 0:00:00]}  Bc6 {[%clk 0:00:00]} 18. Bf3 {[%clk 0:00:00]}  h5 {[%clk 0:00:00]} 19. h3 {[%clk 0:00:00]}  Qh6 {[%clk 0:00:00]} 20. Rcd1 {[%clk 0:00:00]}  g5 {[%clk 0:00:00]} 21. Bc1 {[%clk 0:00:00]}  Qg6 {[%clk 0:00:00]} 22. g3 {[%clk 0:00:00]}  g4 {[%clk 0:00:00]} 23. hxg4 {[%clk 0:00:00]}  hxg4 {[%clk 0:00:00]} 24. Bg2 {[%clk 0:00:00]}  Kg7 {[%clk 0:00:00]} 25. Kg1 {[%clk 0:00:00]}  Rh8 {[%clk 0:00:00]} 26. Rfe1 {[%clk 0:00:00]}  Qh5 {[%clk 0:00:00]} 27. Ba3 {[%clk 0:00:00]}  b5 {[%clk 0:00:00]} 28. cxb5 {[%clk 0:00:00]}  axb5 {[%clk 0:00:00]} 29. Bb4 {[%clk 0:00:00]}  Qh2+ {[%clk 0:00:00]} 30. Kf1 {[%clk 0:00:00]}  Rh6 {[%clk 0:00:00]} 31. Bxd6 {[%clk 0:00:00]}  Bxd6 {[%clk 0:00:00]} 32. Qxd6 {[%clk 0:00:00]}  Nd7 {[%clk 0:00:00]} 33. Qd2 {[%clk 0:00:00]}  b4 {[%clk 0:00:00]} 34. Ne2 {[%clk 0:00:00]}  Bb5 {[%clk 0:00:00]} 35. Qg5+ {[%clk 0:00:00]}  Rg6 {[%clk 0:00:00]} 36. Qe3 {[%clk 0:00:00]}  Rc3 {[%clk 0:00:00]} 37. Qa7 {[%clk 0:00:00]}  Rf6 {[%clk 0:00:00]} 38. Rxd7 {[%clk 0:00:00]}  Rxg3 {[%clk 0:00:00]} 0-1


[Site "https://www.chess.com"]

[Event "Titled Tuesday Blitz August 16 Late 2022"]
[White "Vivekananthan, Anish"]
[Black "Vusatiuk, Vladimir"]
[WhiteFideId "2090775"]
[BlackFideId "14118610"]
[WhiteElo "2826"]
[BlackElo "2157"]
[Result "1-0"]
[Round "01"]
[TimeControl "180+1"]
[Date "2022.08.16"]
[WhiteClock "0:00:05"]
[BlackClock "0:00:15"]

1. d4 {[%clk 0:02:56]}  Nf6 {[%clk 0:02:59]} 2. Nf3 {[%clk 0:02:55]}  e6 {[%clk 0:03:00]} 3. c4 {[%clk 0:02:55]}  d5 {[%clk 0:02:57]} 4. Nc3 {[%clk 0:02:55]}  a6 {[%clk 0:02:56]} 5. cxd5 {[%clk 0:02:49]}  exd5 {[%clk 0:02:57]} 6. Bg5 {[%clk 0:02:49]}  Be6 {[%clk 0:02:57]} 7. e3 {[%clk 0:02:49]}  Nbd7 {[%clk 0:02:52]} 8. Bd3 {[%clk 0:02:49]}  Bd6 {[%clk 0:02:51]} 9. O-O {[%clk 0:02:48]}  O-O {[%clk 0:02:50]} 10. Qc2 {[%clk 0:02:48]}  h6 {[%clk 0:02:44]} 11. Bh4 {[%clk 0:02:48]}  c6 {[%clk 0:02:36]} 12. Ne2 {[%clk 0:02:36]}  Qb8 {[%clk 0:02:30]} 13. Bg3 {[%clk 0:02:33]}  g6 {[%clk 0:02:13]} 14. Bxg6 {[%clk 0:02:15]}  Bxg3 {[%clk 0:01:35]} 15. hxg3 {[%clk 0:02:08]}  fxg6 {[%clk 0:01:35]} 16. Qxg6+ {[%clk 0:02:09]}  Kh8 {[%clk 0:01:35]} 17. Qxh6+ {[%clk 0:02:08]}  Kg8 {[%clk 0:01:36]} 18. Qg6+ {[%clk 0:01:11]}  Kh8 {[%clk 0:01:36]} 19. Qh6+ {[%clk 0:01:07]}  Kg8 {[%clk 0:01:36]} 20. Nf4 {[%clk 0:01:08]}  Qd6 {[%clk 0:00:51]} 21. Ng6 {[%clk 0:01:04]}  Nh7 {[%clk 0:00:18]} 22. Ng5 {[%clk 0:00:28]}  Nxg5 {[%clk 0:00:13]} 23. Nxf8 {[%clk 0:00:28]}  Nf7 {[%clk 0:00:04]} 24. Qxe6 {[%clk 0:00:26]}  Nxf8 {[%clk 0:00:04]} 25. Qg4+ {[%clk 0:00:23]}  Qg6 {[%clk 0:00:02]} 26. Qxg6+ {[%clk 0:00:20]}  Nxg6 {[%clk 0:00:03]} 27. f3 {[%clk 0:00:20]}  Nd6 {[%clk 0:00:04]} 28. Kf2 {[%clk 0:00:19]}  Re8 {[%clk 0:00:05]} 29. g4 {[%clk 0:00:19]}  Nc4 {[%clk 0:00:05]} 30. b3 {[%clk 0:00:11]}  Nxe3 {[%clk 0:00:02]} 31. Rfe1 {[%clk 0:00:10]}  Nxg4+ {[%clk 0:00:01]} 32. fxg4 {[%clk 0:00:10]}  Rf8+ {[%clk 0:00:02]} 33. Kg3 {[%clk 0:00:11]}  Nf4 {[%clk 0:00:03]} 34. Rf1 {[%clk 0:00:11]}  Ne2+ {[%clk 0:00:03]} 35. Kh4 {[%clk 0:00:10]}  Rd8 {[%clk 0:00:04]} 36. Rad1 {[%clk 0:00:09]}  Rd7 {[%clk 0:00:03]} 37. g5 {[%clk 0:00:06]}  Nc3 {[%clk 0:00:03]} 38. Rde1 {[%clk 0:00:06]}  Ne4 {[%clk 0:00:04]} 39. Rf4 {[%clk 0:00:05]}  Rh7+ {[%clk 0:00:05]} 40. Kg4 {[%clk 0:00:05]}  Rg7 {[%clk 0:00:06]} 41. Rexe4 {[%clk 0:00:05]}  dxe4 {[%clk 0:00:07]} 42. Rxe4 {[%clk 0:00:06]}  Kf7 {[%clk 0:00:07]} 43. Kf5 {[%clk 0:00:06]}  Rg8 {[%clk 0:00:06]} 44. Re6 {[%clk 0:00:05]}  Rh8 {[%clk 0:00:07]} 45. g6+ {[%clk 0:00:05]}  Kf8 {[%clk 0:00:07]} 46. Kf6 {[%clk 0:00:05]}  Rg8 {[%clk 0:00:08]} 47. Rd6 {[%clk 0:00:04]}  Ke8 {[%clk 0:00:08]} 48. g7 {[%clk 0:00:04]}  a5 {[%clk 0:00:09]} 49. g4 {[%clk 0:00:04]}  a4 {[%clk 0:00:09]} 50. Re6+ {[%clk 0:00:04]}  Kd8 {[%clk 0:00:09]} 51. Kf7 {[%clk 0:00:04]}  Rxg7+ {[%clk 0:00:09]} 52. Kxg7 {[%clk 0:00:04]}  axb3 {[%clk 0:00:10]} 53. axb3 {[%clk 0:00:04]}  Kd7 {[%clk 0:00:11]} 54. Re5 {[%clk 0:00:04]}  Kd6 {[%clk 0:00:11]} 55. g5 {[%clk 0:00:05]}  b6 {[%clk 0:00:12]} 56. Kf6 {[%clk 0:00:05]}  c5 {[%clk 0:00:13]} 57. dxc5+ {[%clk 0:00:05]}  bxc5 {[%clk 0:00:14]} 58. g6 {[%clk 0:00:05]}  c4 {[%clk 0:00:15]} 59. bxc4 {[%clk 0:00:05]} 1-0


[Site "https://www.chess.com"]

[Event "Titled Tuesday Blitz August 16 Late 2022"]
[White "Volkov, Maksim"]
[Black "Meduri, Aakaash"]
[WhiteFideId "54123070"]
[BlackFideId "2032252"]
[WhiteElo "2155"]
[BlackElo "2113"]
[Result "0-1"]
[Round "01"]
[TimeControl "180+1"]
[Date "2022.08.18"]
[WhiteClock "0:00:00"]
[BlackClock "0:00:00"]

1. d4 {[%clk 0:00:00]}  f5 {[%clk 0:00:00]} 2. c4 {[%clk 0:00:00]}  Nf6 {[%clk 0:00:00]} 3. Nf3 {[%clk 0:00:00]}  e6 {[%clk 0:00:00]} 4. g3 {[%clk 0:00:00]}  Be7 {[%clk 0:00:00]} 5. Bg2 {[%clk 0:00:00]}  O-O {[%clk 0:00:00]} 6. O-O {[%clk 0:00:00]}  d6 {[%clk 0:00:00]} 7. Nbd2 {[%clk 0:00:00]}  Ne4 {[%clk 0:00:00]} 8. Nxe4 {[%clk 0:00:00]}  fxe4 {[%clk 0:00:00]} 9. Ne1 {[%clk 0:00:00]}  d5 {[%clk 0:00:00]} 10. f3 {[%clk 0:00:00]}  dxc4 {[%clk 0:00:00]} 11. fxe4 {[%clk 0:00:00]}  Rxf1+ {[%clk 0:00:00]} 12. Kxf1 {[%clk 0:00:00]}  b5 {[%clk 0:00:00]} 13. e5 {[%clk 0:00:00]}  c6 {[%clk 0:00:00]} 14. Nc2 {[%clk 0:00:00]}  Bb7 {[%clk 0:00:00]} 15. Bd2 {[%clk 0:00:00]}  Nd7 {[%clk 0:00:00]} 16. Kg1 {[%clk 0:00:00]}  Nb6 {[%clk 0:00:00]} 17. Bb4 {[%clk 0:00:00]}  a5 {[%clk 0:00:00]} 18. Bxe7 {[%clk 0:00:00]}  Qxe7 {[%clk 0:00:00]} 19. Qd2 {[%clk 0:00:00]}  b4 {[%clk 0:00:00]} 20. Rf1 {[%clk 0:00:00]}  Rd8 {[%clk 0:00:00]} 21. a3 {[%clk 0:00:00]}  c3 {[%clk 0:00:00]} 22. bxc3 {[%clk 0:00:00]}  b3 {[%clk 0:00:00]} 23. Ne3 {[%clk 0:00:00]}  Qxa3 {[%clk 0:00:00]} 24. Bh3 {[%clk 0:00:00]}  Qe7 {[%clk 0:00:00]} 25. c4 {[%clk 0:00:00]}  Ra8 {[%clk 0:00:00]} 26. Ng4 {[%clk 0:00:00]}  c5 {[%clk 0:00:00]} 27. Nf6+ {[%clk 0:00:00]}  gxf6 {[%clk 0:00:00]} 28. exf6 {[%clk 0:00:00]}  Qf7 {[%clk 0:00:00]} 29. dxc5 {[%clk 0:00:00]}  Nxc4 {[%clk 0:00:00]} 30. Qg5+ {[%clk 0:00:00]}  Qg6 {[%clk 0:00:00]} 31. Bxe6+ {[%clk 0:00:00]}  Kh8 {[%clk 0:00:00]} 32. Qxg6 {[%clk 0:00:00]}  hxg6 {[%clk 0:00:00]} 33. Bxc4 {[%clk 0:00:00]}  a4 {[%clk 0:00:00]} 34. Rb1 {[%clk 0:00:00]}  Be4 {[%clk 0:00:00]} 35. Rd1 {[%clk 0:00:00]}  b2 {[%clk 0:00:00]} 36. Ba2 {[%clk 0:00:00]}  Rb8 {[%clk 0:00:00]} 37. c6 {[%clk 0:00:00]}  Bxc6 {[%clk 0:00:00]} 38. Bb1 {[%clk 0:00:00]}  a3 {[%clk 0:00:00]} 39. Kf2 {[%clk 0:00:00]}  Be4 {[%clk 0:00:00]} 40. Bxe4 {[%clk 0:00:00]}  a2 {[%clk 0:00:00]} 41. Bxg6 {[%clk 0:00:00]}  a1=Q {[%clk 0:00:00]} 42. Rd7 {[%clk 0:00:00]}  b1=Q {[%clk 0:00:00]} 43. Rh7+ {[%clk 0:00:00]}  Kg8 {[%clk 0:00:00]} 44. Rg7+ {[%clk 0:00:00]}  Kf8 {[%clk 0:00:00]} 45. Rf7+ {[%clk 0:00:00]}  Ke8 {[%clk 0:00:00]} 46. Re7+ {[%clk 0:00:00]}  Kd8 {[%clk 0:00:00]} 47. Bxb1 {[%clk 0:00:00]}  Qxb1 {[%clk 0:00:00]} 48. Re3 {[%clk 0:00:00]}  Qf5+ {[%clk 0:00:00]} 49. Rf3 {[%clk 0:00:00]}  Qc5+ {[%clk 0:00:00]} 50. Kg2 {[%clk 0:00:00]}  Rb7 {[%clk 0:00:00]} 51. f7 {[%clk 0:00:00]}  Qf8 {[%clk 0:00:00]} 52. Rd3+ {[%clk 0:00:00]}  Kc8 {[%clk 0:00:00]} 53. Rc3+ {[%clk 0:00:00]}  Kb8 {[%clk 0:00:00]} 54. h4 {[%clk 0:00:00]}  Rxf7 {[%clk 0:00:00]} 55. Rb3+ {[%clk 0:00:00]}  Rb7 {[%clk 0:00:00]} 56. Rf3 {[%clk 0:00:00]}  Qe7 {[%clk 0:00:00]} 57. Kf2 {[%clk 0:00:00]}  Rb2 {[%clk 0:00:00]} 58. Re3 {[%clk 0:00:00]}  Qf6+ {[%clk 0:00:00]} 59. Rf3 {[%clk 0:00:00]}  Qd4+ {[%clk 0:00:00]} 60. Kf1 {[%clk 0:00:00]}  Qd1+ {[%clk 0:00:00]} 61. Kg2 {[%clk 0:00:00]}  Qxe2+ {[%clk 0:00:00]} 62. Kh3 {[%clk 0:00:00]}  Qxf3 {[%clk 0:00:00]} 63. h5 {[%clk 0:00:00]}  Qxh5# {[%clk 0:00:00]} 0-1


[Site "https://www.chess.com"]